fUST/lending_fUST_20240701
["ID","MTS","AMOUNT","RATE_DAILY","PERIOD"]
[330773530,1719771043118,-500.0,0.00015061,2]
[330773532,1719771043127,-554.01,0.00015061,2]
[330773534,1719771043137,-500.0,0.00015061,2]
[330773536,1719771043146,-611.5,0.00015061,2]
[330773538,1719771043156,-500.0,0.00015061,2]
[330773541,1719771043165,-500.0,0.00015061,2]
[330773544,1719771043174,-1242.15,0.00015061,2]
[330773546,1719771043184,-500.0,0.00015061,2]
[330773548,1719771043194,-500.0,0.00015061,2]
[330773550,1719771043203,-500.0,0.00015061,2]
[330773552,1719771043212,-292.90283825,0.00015061,2]
[330773554,1719771043222,-203.71172782,0.00015061,2]
[330773556,1719771043231,-500.0,0.00015061,2]
[330773558,1719771043240,-500.0,0.00015061,2]
[330773560,1719771043249,-500.0,0.00015061,2]
[330773562,1719771043259,-500.0,0.00015061,2]
[330773564,1719771043268,-500.0,0.00015061,2]
[330773566,1719771043278,-500.0,0.00015061,2]
[330773569,1719771043287,-500.0,0.00015061,2]
[330773571,1719771043296,-587.59,0.00015061,2]
[330773573,1719771043306,-500.0,0.00015061,2]
[330773575,1719771043315,-500.0,0.00015061,2]
[330773577,1719771043325,-517.8319729,0.00015061,2]
[330773578,1719771043334,-500.0,0.00015061,2]
[330773579,1719771043343,-500.0,0.00015061,2]
[330773580,1719771043353,-500.0,0.00015061,2]
[330773581,1719771043362,-500.0,0.00015061,2]
[330773582,1719771043371,-500.0,0.00015061,2]
[330773583,1719771043380,-515.3,0.00015061,2]
[330773584,1719771043390,-500.0,0.00015061,2]
[330773585,1719771043399,-500.0,0.00015061,2]
[330773586,1719771043409,-500.0,0.00015061,2]
[330773587,1719771043418,-500.0,0.00015061,2]
[330773588,1719771043427,-500.0,0.00015061,2]
[330773589,1719771043437,-504.08202438,0.00015061,2]
[330773590,1719771043446,-503.24719233,0.00015061,2]
[330773591,1719771043455,-500.0,0.00015061,2]
[330773592,1719771043464,-500.0,0.00015061,2]
[330773593,1719771043474,-500.77469076,0.00015061,2]
[330773594,1719771043484,-500.0,0.00015061,2]
[330773595,1719771043493,-500.0,0.00015061,2]
[330773596,1719771043503,-503.24659044,0.00015061,2]
[330773597,1719771043513,-500.0,0.00015061,2]
[330773598,1719771043522,-501.10726315,0.00015061,2]
[330773599,1719771043532,-501.07835622,0.00015061,2]
[330773600,1719771043542,-500.0,0.00015061,2]
[330773601,1719771043551,-500.0,0.00015061,2]
[330773602,1719771043561,-501.64471739,0.00015061,2]
[330773603,1719771043570,-497.58966445,0.00015061,2]
[330773604,1719771043579,-500.0,0.00015061,2]
[330773605,1719771043591,-500.0,0.00015061,2]
[330773607,1719771043601,-500.0,0.00015061,2]
[330773608,1719771043611,-500.95058634,0.00015061,2]
[330773609,1719771043622,-501.34266235,0.00015061,2]
[330773610,1719771043632,-500.0,0.00015061,2]
[330773611,1719771043642,-500.0,0.00015061,2]
[330773612,1719771043652,-500.0,0.00015061,2]
[330773613,1719771043663,-500.0,0.00015061,2]
[330773614,1719771043672,-500.9947283,0.00015061,2]
[330773615,1719771043682,-500.0,0.00015061,2]
[330773616,1719771043692,-500.0,0.00015061,2]
[330773617,1719771043701,-500.0,0.00015061,2]
[330773618,1719771043711,-500.0,0.00015061,2]
[330773619,1719771043720,-500.91677921,0.00015061,2]
[330773620,1719771043730,-1056.56,0.00015061,2]
[330773621,1719771043740,-500.0,0.00015061,2]
[330773622,1719771043749,-500.0,0.00015061,2]
[330773623,1719771043759,-500.97532239,0.00015061,2]
[330773624,1719771043769,-500.0,0.00015061,2]
[330773625,1719771043779,-513.4056479,0.00015061,2]
[330773626,1719771043789,-500.0,0.00015061,2]
[330773627,1719771043798,-513.24,0.00015061,2]
[330773628,1719771043807,-501.05769785,0.00015061,2]
[330773629,1719771043817,-1285.19,0.00015061,2]
[330773630,1719771043827,-500.0,0.00015061,2]
[330773631,1719771043837,-500.0,0.00015061,2]
[330773632,1719771043846,-534.84,0.00015061,2]
[330773633,1719771043856,-500.0,0.00015061,2]
[330773634,1719771043865,-1433.89,0.00015061,2]
[330773635,1719771043874,-500.0,0.00015061,2]
[330773636,1719771043886,-500.0,0.00015061,2]
[330773637,1719771043895,-622.28,0.00015061,2]
[330773638,1719771043904,-18529.44,0.00015061,2]
[330773639,1719771043913,-500.0,0.00015061,2]
[330773640,1719771043923,-511.44837784,0.00015062,2]
[330773641,1719771043932,-502.16022671,0.00015062,2]
[330773642,1719771043944,-500.0,0.00015062,2]
[330773643,1719771043953,-500.0,0.00015062,2]
[330773644,1719771043965,-508.13071172,0.00015062,2]
[330773645,1719771043975,-500.0,0.00015062,2]
[330773646,1719771043984,-500.0,0.00015062,2]
[330773647,1719771043993,-500.0,0.00015062,2]
[330773648,1719771044003,-500.0,0.00015062,2]
[330773649,1719771044012,-500.0,0.00015062,2]
[330773650,1719771044021,-1433.89,0.00015062,2]
[330773651,1719771044032,-671.28,0.00015062,2]
[330773652,1719771044041,-614.23,0.00015062,2]
[330773653,1719771044050,-2466.6,0.00015063,2]
[330773654,1719771044060,-9991.82,0.00015063,2]
[330773655,1719771044069,-292.863491,0.00015063,2]
[330773656,1719771044078,-2078.67,0.00015063,2]
[330773657,1719771044088,-500.0,0.00015063,2]
[330773658,1719771044097,-16560.28,0.00015063,2]
[330773659,1719771044107,-1519.08,0.00015063,2]
[330773660,1719771044116,-1564.6,0.00015063,2]
[330773661,1719771044125,-500.0,0.00015064,2]
[330773662,1719771044228,-500.0,0.00015066,2]
[330773663,1719771044239,-500.0,0.00015067,2]
[330773664,1719771044248,-1433.89,0.00015069,2]
[330773665,1719771044258,-2634.0,0.0001507,2]
[330773666,1719771044267,-153.0,0.00015319,2]
[330773667,1719771044276,-153.0,0.00015319,2]
[330773668,1719771044285,-153.0,0.00015319,2]
[330773669,1719771044295,-153.0,0.00015322,2]
[330773670,1719771044304,-153.0,0.00015327,2]
[330773671,1719771044314,-2706.82,0.00015602,2]
[330773672,1719771044324,-500.0,0.00015602,2]
[330773673,1719771044333,-822.12,0.00015602,2]
[330773674,1719771044343,-2520.97,0.00015602,2]
[330773675,1719771044352,-500.0,0.00015602,2]
[330773676,1719771044361,-21565.65,0.00015602,2]
[330773677,1719771044371,-2987.45,0.00015602,2]
[330773678,1719771044380,-5308.73,0.00015602,2]
[330773679,1719771044389,-151.0,0.00015602,2]
[330773680,1719771044399,-151.0,0.00015602,2]
[330773681,1719771044409,-151.0,0.00015602,2]
[330773682,1719771044418,-151.0,0.00015602,2]
[330773683,1719771044427,-2248.81,0.00015603,2]
[330773684,1719771044439,-872.96,0.00015603,2]
[330773685,1719771044448,-500.0,0.00015603,2]
[330773686,1719771044457,-6049.03,0.00015603,2]
[330773687,1719771044466,-5836.78,0.00015603,2]
[330773688,1719771044478,-2980.66,0.00015603,2]
[330773689,1719771044488,-576.42,0.00015603,2]
[330773690,1719771044498,-585.39,0.00015603,2]
[330773691,1719771044508,-151.0,0.00015603,2]
[330773692,1719771044518,-151.0,0.00015603,2]
[330773693,1719771044527,-151.0,0.00015603,2]
[330773694,1719771044537,-151.0,0.00015603,2]
[330773695,1719771044547,-2635.96,0.00015603,2]
[330773696,1719771044557,-156.234,0.00015603,2]
[330773697,1719771044567,-156.234,0.00015603,2]
[330773698,1719771044577,-2518.92,0.00015603,2]
[330773699,1719771044589,-160.399447,0.00015603,2]
[330773700,1719771044599,-151.0,0.00015603,2]
[330773701,1719771044608,-160.399447,0.00015603,2]
[330773702,1719771044617,-151.0,0.00015603,2]
[330773703,1719771044627,-500.0,0.00015603,2]
[330773704,1719771044636,-1558.41,0.00015603,2]
[330773705,1719771044646,-500.0,0.00015603,2]
[330773706,1719771044655,-699.72,0.00015603,2]
[330773707,1719771044664,-926.5,0.00015603,2]
[330773708,1719771044673,-601.8,0.00015603,2]
[330773709,1719771044682,-500.0,0.00015603,2]
[330773710,1719771044693,-500.0,0.00015604,2]
[330773711,1719771044702,-2163.86,0.00015604,2]
[330773712,1719771044711,-500.0,0.00015604,2]
[330773713,1719771044720,-2739.68,0.00015604,2]
[330773714,1719771044730,-210.84684265,0.00015604,2]
[330773715,1719771044739,-525.79,0.00015604,2]
[330773716,1719771044747,-558.84,0.00015604,2]
[330773717,1719771044757,-2349.76,0.00015604,2]
[330773718,1719771044766,-2887.7,0.00015604,2]
[330773719,1719771044775,-669.64,0.00015604,2]
[330773720,1719771044784,-500.0,0.00015604,2]
[330773721,1719771044793,-500.0,0.00015604,2]
[330773722,1719771044802,-744.5,0.00015604,2]
[330773723,1719771044811,-1000.48,0.00015604,2]
[330773724,1719771044820,-799.16,0.00015604,2]
[330773725,1719771044829,-687.4,0.00015604,2]
[330773726,1719771044838,-504.70711968,0.00015604,2]
[330773727,1719771044847,-500.0,0.00015604,2]
[330773728,1719771044855,-2516.13,0.00015604,2]
[330773729,1719771044864,-506.29147008,0.00015604,2]
[330773730,1719771044874,-500.0,0.00015604,2]
[330773731,1719771044888,-500.0,0.00015604,2]
[330773732,1719771044899,-12036.49,0.00015604,2]
[330773733,1719771044909,-500.0,0.00015604,2]
[330773734,1719771044918,-4290.55,0.00015604,2]
[330773735,1719771044930,-913.01,0.00015604,2]
[330773736,1719771044939,-1793.24,0.00015604,2]
[330773737,1719771044949,-500.0,0.00015604,2]
[330773738,1719771044960,-804.12,0.00015604,2]
[330773739,1719771044969,-930.28,0.00015604,2]
[330773740,1719771044979,-500.0,0.00015604,2]
[330773741,1719771044988,-896.34,0.00015604,2]
[330773742,1719771044998,-500.0,0.00015604,2]
[330773743,1719771045007,-500.0,0.00015604,2]
[330773744,1719771045017,-500.0,0.00015604,2]
[330773745,1719771045027,-1137.45,0.00015604,2]
[330773746,1719771045036,-1991.42,0.00015604,2]
[330773747,1719771045046,-1071.78,0.00015604,2]
[330773748,1719771045056,-500.0,0.00015604,2]
[330773749,1719771045066,-628.63,0.00015604,2]
[330773750,1719771045076,-2083.81,0.00015604,2]
[330773751,1719771045086,-500.0,0.00015605,2]
[330773752,1719771045096,-500.0,0.00015605,2]
[330773753,1719771045105,-500.0,0.00015605,2]
[330773754,1719771045115,-500.0,0.00015605,2]
[330773755,1719771045125,-500.0,0.00015605,2]
[330773756,1719771045135,-500.0,0.00015605,2]
[330773757,1719771045144,-500.0,0.00015605,2]
[330773758,1719771045153,-500.0,0.00015605,2]
[330773759,1719771045163,-500.0,0.00015605,2]
[330773760,1719771045172,-501.68662757,0.00015605,2]
[330773761,1719771045182,-500.0,0.00015605,2]
[330773762,1719771045193,-500.0,0.00015605,2]
[330773763,1719771045202,-500.0,0.00015605,2]
[330773764,1719771045212,-500.0,0.00015605,2]
[330773765,1719771045221,-500.0,0.00015605,2]
[330773766,1719771045231,-589.64,0.00015605,2]
[330773767,1719771045240,-500.0,0.00015605,2]
[330773768,1719771045250,-500.0,0.00015605,2]
[330773769,1719771045259,-500.0,0.00015605,2]
[330773770,1719771045269,-525.55562357,0.00015605,2]
[330773771,1719771045278,-500.0,0.00015605,2]
[330773772,1719771045288,-500.0,0.00015605,2]
[330773773,1719771045298,-521.37,0.00015605,2]
[330773774,1719771045307,-500.0,0.00015605,2]
[330773775,1719771045316,-500.0,0.00015605,2]
[330773776,1719771045325,-500.0,0.00015605,2]
[330773777,1719771045336,-18273.02,0.00015605,2]
[330773778,1719771045345,-500.0,0.00015605,2]
[330773779,1719771045354,-810.82,0.00015605,2]
[330773780,1719771045365,-500.0,0.00015605,2]
[330773781,1719771045374,-696.64,0.00015605,2]
[330773782,1719771045385,-897.93,0.00015605,2]
[330773783,1719771045394,-500.0,0.00015605,2]
[330773784,1719771045403,-500.0,0.00015605,2]
[330773785,1719771045412,-500.0,0.00015605,2]
[330773786,1719771045422,-904.83,0.00015605,2]
[330773787,1719771045431,-1633.0,0.00015605,2]
[330773788,1719771045441,-500.0,0.00015605,2]
[330773789,1719771045450,-506.28796001,0.00015605,2]
[330773790,1719771045459,-500.0,0.00015605,2]
[330773791,1719771045468,-500.0,0.00015605,2]
[330773792,1719771045478,-8083.31,0.00015605,2]
[330773793,1719771045489,-1454.98,0.00015605,2]
[330773794,1719771045500,-1080.08,0.00015605,2]
[330773795,1719771045510,-500.0,0.00015605,2]
[330773796,1719771045520,-500.0,0.00015605,2]
[330773797,1719771045530,-500.0,0.00015605,2]
[330773798,1719771045539,-2690.13,0.00015605,2]
[330773799,1719771045549,-500.0,0.00015605,2]
[330773800,1719771045559,-775.72,0.00015605,2]
[330773801,1719771045570,-500.0,0.00015605,2]
[330773802,1719771045580,-608.6,0.00015605,2]
[330773803,1719771045592,-502.84176191,0.00015605,2]
[330773804,1719771045602,-529.3,0.00015605,2]
[330773805,1719771045612,-500.0,0.00015605,2]
[330773806,1719771045622,-547.28,0.00015605,2]
[330773807,1719771045631,-904.05,0.00015605,2]
[330773808,1719771045641,-523.53,0.00015605,2]
[330773809,1719771045651,-355.64582305,0.00015605,2]
[330773810,1719771045660,-184.557277,0.00015605,2]
[330773811,1719771045670,-638.68725167,0.00015605,2]
[330773812,1719771045679,-500.0,0.00015605,2]
[330773813,1719771045689,-500.0,0.00015605,2]
[330773814,1719771045698,-500.0,0.00015605,2]
[330773815,1719771045707,-500.0,0.00015605,2]
[330773816,1719771045716,-500.0,0.00015605,2]
[330773817,1719771045725,-500.0,0.00015605,2]
[330773818,1719771045734,-500.0,0.00015605,2]
[330773819,1719771045743,-505.783091,0.00015605,2]
[330773820,1719771045752,-500.0,0.00015605,2]
[330773821,1719771045762,-500.0,0.00015605,2]
[330773822,1719771045772,-1433.89,0.00015605,2]
[330773823,1719771045782,-505.783091,0.00015605,2]
[330773824,1719771045792,-1433.89,0.00015605,2]
[330773825,1719771045802,-812.22,0.00015605,2]
[330773826,1719771045811,-501.28598276,0.00015605,2]
[330773827,1719771045821,-500.0,0.00015605,2]
[330773828,1719771045833,-500.0,0.00015605,2]
[330773829,1719771045843,-500.0,0.00015605,2]
[330773830,1719771045852,-500.0,0.00015605,2]
[330773831,1719771045861,-151.0,0.00015605,2]
[330773832,1719771045871,-500.0,0.00015605,2]
[330773833,1719771045882,-151.0,0.00015605,2]
[330773834,1719771045895,-151.0,0.00015605,2]
[330773836,1719771045905,-500.0,0.00015605,2]
[330773838,1719771045915,-504.59801319,0.00015605,2]
[330773839,1719771045927,-151.0,0.00015605,2]
[330773840,1719771045937,-500.0,0.00015605,2]
[330773841,1719771045947,-1667.8,0.00015605,2]
[330773842,1719771045957,-500.0,0.00015605,2]
[330773843,1719771045969,-160.288459,0.00015605,2]
[330773844,1719771045978,-504.34795031,0.00015605,2]
[330773845,1719771045988,-507.2552439,0.00015605,2]
[330773846,1719771045998,-160.288459,0.00015605,2]
[330773847,1719771046009,-151.0,0.00015605,2]
[330773848,1719771046018,-1288.13,0.00015605,2]
[330773850,1719771046029,-151.0,0.00015605,2]
[330773851,1719771046038,-40.30988883,0.00015605,2]
[330773858,1719771048159,-461.29011117,0.00015605,2]
[330773859,1719771048168,-676.95,0.00015605,2]
[330773860,1719771048178,-500.0,0.00015605,2]
[330773861,1719771048188,-500.0,0.00015605,2]
[330773862,1719771048197,-448.02819817,0.00015605,2]
[330773863,1719771048207,-500.0,0.00015605,2]
[330773864,1719771048216,-504.37,0.00015605,2]
[330773865,1719771048225,-155.027264,0.00015605,2]
[330773866,1719771048235,-151.0,0.00015605,2]
[330773867,1719771048244,-523.07,0.00015605,2]
[330773868,1719771048253,-151.0,0.00015605,2]
[330773869,1719771048264,-500.0,0.00015605,2]
[330773870,1719771048273,-500.0,0.00015605,2]
[330773871,1719771048283,-500.0,0.00015605,2]
[330773872,1719771048292,-500.0,0.00015605,2]
[330773873,1719771048301,-151.0,0.00015605,2]
[330773874,1719771048311,-884.82,0.00015605,2]
[330773875,1719771048320,-151.0,0.00015605,2]
[330773876,1719771048329,-151.0,0.00015605,2]
[330773877,1719771048338,-500.28,0.00015605,2]
[330773878,1719771048347,-500.0,0.00015605,2]
[330773879,1719771048356,-156.234,0.00015605,2]
[330773880,1719771048365,-500.0,0.00015605,2]
[330773881,1719771048374,-156.234,0.00015605,2]
[330773882,1719771048384,-649.75,0.00015605,2]
[330773883,1719771048393,-160.399447,0.00015605,2]
[330773884,1719771048402,-151.0,0.00015605,2]
[330773885,1719771048411,-160.399447,0.00015605,2]
[330773886,1719771048421,-500.0,0.00015605,2]
[330773887,1719771048430,-1114.74,0.00015605,2]
[330773888,1719771048440,-151.0,0.00015605,2]
[330773889,1719771048449,-567.06,0.00015605,2]
[330773890,1719771048459,-576.5,0.00015605,2]
[330773891,1719771048468,-580.82585361,0.00015605,2]
[330773892,1719771048478,-500.0,0.00015605,2]
[330773893,1719771048487,-2721.35,0.00015605,2]
[330773894,1719771048497,-548.3,0.00015605,2]
[330773895,1719771048506,-504.43843048,0.00015605,2]
[330773896,1719771048516,-500.0,0.00015605,2]
[330773897,1719771048525,-500.0,0.00015605,2]
[330773898,1719771048534,-500.0,0.00015605,2]
[330773899,1719771048543,-537.19386008,0.00015605,2]
[330773900,1719771048552,-500.0,0.00015605,2]
[330773901,1719771048563,-500.0,0.00015605,2]
[330773902,1719771048572,-500.0,0.00015605,2]
[330773903,1719771048581,-500.0,0.00015605,2]
[330773904,1719771048592,-500.0,0.00015605,2]
[330773905,1719771048601,-500.0,0.00015605,2]
[330773906,1719771048610,-500.0,0.00015605,2]
[330773907,1719771048619,-500.0,0.00015605,2]
[330773908,1719771048628,-500.0,0.00015605,2]
[330773909,1719771048638,-500.0,0.00015605,2]
[330773910,1719771048647,-500.0,0.00015605,2]
[330773911,1719771048656,-151.0,0.00015605,2]
[330773912,1719771048665,-500.0,0.00015605,2]
[330773913,1719771048675,-500.0,0.00015605,2]
[330773914,1719771048683,-151.0,0.00015605,2]
[330773915,1719771048694,-500.0,0.00015605,2]
[330773916,1719771048703,-581.74,0.00015605,2]
[330773917,1719771048713,-503.3282591,0.00015605,2]
[330773918,1719771048722,-151.0,0.00015605,2]
[330773919,1719771048731,-701.68,0.00015605,2]
[330773920,1719771048740,-151.0,0.00015605,2]
[330773921,1719771048749,-13565.55,0.00015605,2]
[330773922,1719771048758,-579.96,0.00015605,2]
[330773923,1719771048767,-500.0,0.00015606,2]
[330773924,1719771048776,-500.0,0.00015606,2]
[330773925,1719771048785,-500.0,0.00015606,2]
[330773926,1719771048794,-500.0,0.00015606,2]
[330773927,1719771048803,-500.0,0.00015606,2]
[330773928,1719771048812,-1155.62,0.00015606,2]
[330773929,1719771048822,-411.10069792,0.00015606,2]
[330773930,1719771048831,-959.78,0.00015606,2]
[330773931,1719771048840,-500.0,0.00015606,2]
[330773932,1719771048849,-500.0,0.00015606,2]
[330773933,1719771048858,-500.0,0.00015606,2]
[330773934,1719771048867,-500.0,0.00015606,2]
[330773935,1719771048877,-756.89,0.00015606,2]
[330773936,1719771048891,-500.0,0.00015606,2]
[330773937,1719771048900,-1401.72,0.00015606,2]
[330773938,1719771048910,-2264.21,0.00015606,2]
[330773939,1719771048919,-500.0,0.00015606,2]
[330773940,1719771048929,-518.7320428,0.00015606,2]
[330773941,1719771048938,-500.0,0.00015606,2]
[330773942,1719771048947,-500.0,0.00015606,2]
[330773943,1719771048958,-1161.71,0.00015606,2]
[330773944,1719771048968,-581.54115651,0.00015606,2]
[330773945,1719771048978,-500.0,0.00015606,2]
[330773946,1719771048987,-821.21,0.00015606,2]
[330773947,1719771048996,-1684.43,0.00015606,2]
[330773948,1719771049005,-681.93,0.00015606,2]
[330773949,1719771049015,-168.03759247,0.00015606,2]
[330773950,1719771049024,-680.96,0.00015606,2]
[330773951,1719771049034,-1987.36,0.00015606,2]
[330773952,1719771049043,-500.0,0.00015606,2]
[330773953,1719771049053,-500.0,0.00015606,2]
[330773954,1719771049062,-500.0,0.00015606,2]
[330773955,1719771049071,-1837.12,0.00015606,2]
[330773956,1719771049081,-500.0,0.00015606,2]
[330773957,1719771049090,-1050.92,0.00015606,2]
[330773958,1719771049099,-393.39029135,0.00015606,2]
[330773959,1719771049109,-500.0,0.00015606,2]
[330773960,1719771049118,-1352.14,0.00015606,2]
[330773961,1719771049128,-540.88,0.00015606,2]
[330773962,1719771049137,-500.0,0.00015606,2]
[330773963,1719771049147,-1049.3,0.00015606,2]
[330773964,1719771049156,-1704.23,0.00015606,2]
[330773965,1719771049165,-500.0,0.00015606,2]
[330773966,1719771049175,-617.24,0.00015606,2]
[330773967,1719771049184,-500.0,0.00015606,2]
[330773968,1719771049194,-151.0,0.00015606,2]
[330773969,1719771049203,-151.0,0.00015606,2]
[330773970,1719771049214,-151.0,0.00015606,2]
[330773971,1719771049223,-500.0,0.00015606,2]
[330773972,1719771049232,-151.0,0.00015606,2]
[330773973,1719771049241,-500.0,0.00015606,2]
[330773974,1719771049251,-500.0,0.00015606,2]
[330773975,1719771049260,-1433.89,0.00015607,2]
[330773976,1719771049270,-1433.89,0.00015608,2]
[330773977,1719771049279,-500.0,0.00015609,2]
[330773978,1719771049288,-500.0,0.00015609,2]
[330773979,1719771049298,-500.0,0.00015609,2]
[330773980,1719771049307,-749.34,0.00015609,2]
[330773981,1719771049316,-500.0,0.00015609,2]
[330773982,1719771049325,-500.0,0.00015609,2]
[330773983,1719771049334,-500.0,0.00015609,2]
[330773984,1719771049343,-500.0,0.00015609,2]
[330773985,1719771049442,-1162.04,0.00015609,2]
[330773986,1719771049452,-500.0,0.00015609,2]
[330773987,1719771049460,-500.0,0.00015609,2]
[330773988,1719771049470,-500.0,0.00015609,2]
[330773989,1719771049479,-500.0,0.00015609,2]
[330773990,1719771049488,-500.0,0.00015609,2]
[330773991,1719771049498,-500.0,0.00015609,2]
[330773992,1719771049507,-1012.15,0.00015609,2]
[330773993,1719771049516,-500.0,0.00015609,2]
[330773994,1719771049526,-500.0,0.00015609,2]
[330773995,1719771049535,-500.0,0.00015609,2]
[330773996,1719771049545,-554.01,0.00015609,2]
[330773997,1719771049554,-500.0,0.00015609,2]
[330773998,1719771049564,-611.5,0.00015609,2]
[330773999,1719771049573,-500.0,0.00015609,2]
[330774000,1719771049583,-500.0,0.00015609,2]
[330774001,1719771049593,-1242.15,0.00015609,2]
[330774002,1719771049602,-500.0,0.00015609,2]
[330774003,1719771049611,-500.0,0.00015609,2]
[330774004,1719771049620,-500.0,0.00015609,2]
[330774005,1719771049630,-500.0,0.00015609,2]
[330774006,1719771049639,-500.0,0.00015609,2]
[330774007,1719771049648,-500.0,0.00015609,2]
[330774008,1719771049657,-500.0,0.00015609,2]
[330774009,1719771049666,-510.3126572,0.00015609,2]
[330774010,1719771049675,-500.0,0.00015609,2]
[330774011,1719771049685,-587.59,0.00015609,2]
[330774012,1719771049695,-568.10172265,0.00015609,2]
[330774013,1719771049705,-500.0,0.00015609,2]
[330774014,1719771049715,-500.0,0.00015609,2]
[330774015,1719771049724,-515.3,0.00015609,2]
[330774016,1719771049733,-500.0,0.00015609,2]
[330774017,1719771049742,-500.0,0.00015609,2]
[330774018,1719771049751,-500.0,0.00015609,2]
[330774019,1719771049760,-500.0,0.00015609,2]
[330774020,1719771049769,-500.0,0.00015609,2]
[330774021,1719771049778,-476.48292749,0.00015609,2]
[330774022,1719771049788,-501.3233223,0.00015609,2]
[330774023,1719771049797,-500.0,0.00015609,2]
[330774024,1719771049806,-500.0,0.00015609,2]
[330774025,1719771049815,-500.0,0.00015609,2]
[330774026,1719771049824,-462.96109698,0.00015609,2]
[330774027,1719771049833,-536.85832135,0.00015609,2]
[330774028,1719771049842,-500.0,0.00015609,2]
[330774029,1719771049851,-500.0,0.00015609,2]
[330774030,1719771049861,-151.0,0.00015609,2]
[330774031,1719771049870,-501.76979585,0.00015609,2]
[330774032,1719771049879,-501.43804479,0.00015609,2]
[330774033,1719771049893,-500.0,0.00015609,2]
[330774034,1719771049903,-500.0,0.00015609,2]
[330774035,1719771049912,-500.0,0.00015609,2]
[330774036,1719771049921,-500.0,0.00015609,2]
[330774037,1719771049931,-502.46596517,0.00015609,2]
[330774038,1719771049941,-151.0,0.00015609,2]
[330774039,1719771049950,-502.04917409,0.00015609,2]
[330774040,1719771049959,-1056.56,0.00015609,2]
[330774041,1719771049972,-500.0,0.00015609,2]
[330774042,1719771049984,-500.0,0.00015609,2]
[330774043,1719771049994,-247.052392,0.00015609,2]
[330774044,1719771050004,-501.59075125,0.00015609,2]
[330774045,1719771050013,-500.0,0.00015609,2]
[330774046,1719771050022,-513.24,0.00015609,2]
[330774047,1719771050031,-1285.19,0.00015609,2]
[330774048,1719771050041,-500.0,0.00015609,2]
[330774049,1719771050050,-500.0,0.00015609,2]
[330774050,1719771050059,-534.84,0.00015609,2]
[330774051,1719771050070,-184.557277,0.00015609,2]
[330774052,1719771050079,-500.0,0.00015609,2]
[330774053,1719771050089,-505.783091,0.00015609,2]
[330774054,1719771050100,-505.783091,0.00015609,2]
[330774055,1719771050109,-1433.89,0.00015609,2]
[330774056,1719771050119,-151.0,0.00015609,2]
[330774057,1719771050128,-151.0,0.00015609,2]
[330774058,1719771050138,-151.0,0.00015609,2]
[330774059,1719771050147,-151.0,0.00015609,2]
[330774060,1719771050156,-500.0,0.00015609,2]
[330774061,1719771050166,-160.288459,0.00015609,2]
[330774062,1719771050175,-500.0,0.00015609,2]
[330774063,1719771050184,-160.288459,0.00015609,2]
[330774064,1719771050194,-155.762618,0.00015609,2]